bitfinex-derivatives/quotes_BNBF0:USTF0_20250115
["timestamp","ask_amount","ask_price","bid_price","bid_amount"]
[1736953320605,0.26080936,705.17,703.34,1.30352567]
[1736953320800,1.682,705.18,703.34,1.30352567]
[1736953320801,0.26080746,705.16,703.34,1.30352567]
[1736953321002,0.26080746,705.15,703.34,1.30352567]
[1736953321307,0.26080746,705.14,703.34,1.30352567]
[1736953321499,0.26080746,705.13,703.34,1.30352567]
[1736953321704,0.26080746,705.12,703.34,1.30352567]
[1736953322003,0.26080746,705.11,703.34,0.28435749]
[1736953322201,0.26080746,705.1,703.34,0.28435749]
[1736953322404,0.26080746,705.09,703.34,0.28435749]
[1736953322607,0.26080746,705.17,703.34,0.28435749]
[1736953322909,1.31714937,705.16,703.36,1.01916818]
[1736953323107,0.26080746,705.15,703.36,1.01916818]
[1736953323308,0.26080746,705.14,703.36,1.01916818]
[1736953323506,0.26080746,705.13,703.36,1.01916818]
[1736953323708,0.2608829,705.12,703.36,1.01916818]
[1736953323902,0.2608829,705.15,703.36,1.01916818]
[1736953324102,1.05634191,704.94,703.34,0.28435749]
[1736953324407,0.2608829,704.93,703.34,0.28435749]
[1736953325504,0.2608829,704.92,703.34,0.28435749]
[1736953325709,0.2608829,704.91,703.34,0.28435749]
[1736953325910,1.05634191,705.0,703.34,0.28435749]
[1736953326209,1.05634191,704.97,703.34,0.28435749]
[1736953327109,0.864,705.18,703.34,0.28435749]
[1736953327308,0.26085328,705.17,703.34,0.28435749]
[1736953331309,1.05634191,705.15,703.34,0.28435749]
[1736953331510,0.26091439,705.14,703.34,0.28435749]
[1736953331912,1.72534191,705.15,703.34,0.28435749]
[1736953331913,0.26091439,705.13,703.34,0.28435749]
[1736953332116,0.26091439,705.12,703.34,0.28435749]
[1736953332311,0.26091439,705.11,703.34,0.28435749]
[1736953332512,0.26091439,705.1,703.34,0.28435749]
[1736953332713,1.05634191,705.13,703.34,0.28435749]
[1736953332714,0.26091439,705.09,703.34,0.28435749]
[1736953332913,1.05634191,704.93,703.34,0.28435749]
[1736953333215,0.26091439,704.92,703.34,0.28435749]
[1736953333414,1.05634191,704.93,703.34,0.28435749]
[1736953333415,0.26091439,704.91,703.34,0.28435749]
[1736953333611,0.26091439,704.9,703.34,0.28435749]
[1736953333809,0.26091439,704.89,703.34,0.28435749]
[1736953334012,0.26091439,704.88,703.34,0.28435749]
[1736953334208,0.669,705.15,703.34,0.28435749]
[1736953334209,1.05634191,704.81,703.34,0.28435749]
[1736953334412,0.26091439,704.8,703.34,0.28435749]
[1736953334711,0.26091439,704.8,702.41,1.01916818]
[1736953335014,0.26091439,704.8,702.52,0.2846894]
[1736953335214,0.26091439,704.79,702.52,0.2846894]
[1736953335415,0.26091439,704.78,702.52,0.2846894]
[1736953335617,1.05634191,704.76,702.52,0.2846894]
[1736953335817,0.26091439,704.75,702.52,0.2846894]
[1736953337318,0.26091439,704.74,702.52,0.2846894]
[1736953337519,0.26091439,704.73,702.52,0.2846894]
[1736953337714,1.05634191,704.9,702.52,0.2846894]
[1736953337916,0.26108629,704.72,702.52,0.2846894]
[1736953338113,0.26108629,704.71,702.52,0.2846894]
[1736953338311,0.26108629,704.7,702.52,0.2846894]
[1736953338618,0.26108629,704.69,702.52,0.2846894]
[1736953338819,0.26108629,704.68,702.52,0.2846894]
[1736953339119,0.26108629,704.67,702.52,0.2846894]
[1736953339312,0.26108629,704.66,702.52,0.2846894]
[1736953339621,0.26108629,704.65,702.52,0.2846894]
[1736953339817,0.26108629,704.64,702.52,0.2846894]
[1736953340120,0.26108629,704.63,702.52,0.2846894]
[1736953340318,0.26108629,704.62,702.52,0.2846894]
[1736953340519,0.26109821,704.61,702.52,0.2846894]
[1736953340719,0.26109821,704.6,702.52,0.2846894]
[1736953340919,1.05634191,704.67,702.52,0.2846894]
[1736953341619,1.05634191,705.37,702.52,0.2846894]
[1736953341815,0.26104411,705.14,702.52,0.2846894]
[1736953342817,0.26104411,705.13,702.52,0.2846894]
[1736953343020,0.26104411,705.12,702.52,0.2846894]
[1736953343213,0.26104411,705.11,702.52,0.2846894]
[1736953343417,0.26104411,705.1,702.52,0.2846894]
[1736953343616,1.05634191,705.05,702.52,0.2846894]
[1736953343822,0.26104411,705.04,702.52,0.2846894]
[1736953344016,0.26104411,705.03,702.52,0.2846894]
[1736953344214,0.26104411,705.02,702.52,0.2846894]
[1736953344415,0.26104411,705.01,702.52,0.2846894]
[1736953344622,0.26104411,705.0,702.52,0.2846894]
[1736953344922,0.26104411,704.99,702.52,0.2846894]
[1736953345117,0.26104411,704.98,702.52,0.2846894]
[1736953345319,0.26104411,704.97,702.52,0.2846894]
[1736953345520,0.26104411,704.96,702.52,0.2846894]
[1736953345721,1.2676103,705.71,702.52,0.2846894]
[1736953345722,0.26104411,704.95,702.52,0.2846894]
[1736953345921,0.26104411,704.94,702.52,0.2846894]
[1736953346121,0.26104411,704.93,702.52,0.2846894]
[1736953346325,0.26100268,704.92,702.52,0.2846894]
[1736953346520,0.26100268,705.14,702.52,0.2846894]
[1736953346726,0.26100268,705.13,702.52,0.2846894]
[1736953346928,0.26100268,705.12,702.52,0.2846894]
[1736953347227,0.26100268,705.11,702.52,0.2846894]
[1736953347420,0.26100268,705.1,702.52,0.2846894]
[1736953347625,1.05634191,704.88,702.52,0.2846894]
[1736953347924,0.26100268,704.87,702.52,0.2846894]
[1736953348327,0.26100268,704.86,702.52,0.2846894]
[1736953348625,0.26100268,704.85,702.52,0.2846894]
[1736953348828,1.05634191,704.83,702.52,0.2846894]
[1736953349029,0.26100268,704.82,702.52,0.2846894]
[1736953349326,0.26100268,704.81,702.52,0.2846894]
[1736953349528,0.26100268,704.8,702.52,0.2846894]
[1736953349827,0.26100268,704.79,702.52,0.2846894]
[1736953350027,0.26100268,704.78,702.52,0.2846894]
[1736953350227,1.05634191,704.82,702.52,0.2846894]
[1736953350228,0.26100268,704.77,702.52,0.2846894]
[1736953350436,0.26100268,704.76,702.52,0.2846894]
[1736953350722,0.26100268,704.75,702.52,0.2846894]
[1736953351027,1.05634191,704.67,702.52,0.2846894]
[1736953351228,0.26100268,704.66,702.52,0.2846894]
[1736953351526,0.26100268,704.65,702.52,0.2846894]
[1736953351722,0.26100268,704.64,702.52,0.2846894]
[1736953351925,0.26100268,704.63,702.52,0.2846894]
[1736953352123,0.26100268,704.62,702.52,0.2846894]
[1736953352325,1.05634191,704.66,702.52,0.2846894]
[1736953352525,0.26108258,704.61,702.52,0.2846894]
[1736953352825,1.31742449,704.61,702.52,0.2846894]
[1736953353631,1.05634191,704.59,702.52,0.2846894]
[1736953354027,0.26108512,704.58,702.52,0.2846894]
[1736953354234,0.26108512,704.57,702.52,0.2846894]
[1736953354534,0.26108512,704.56,702.52,0.2846894]
[1736953354729,0.26108512,704.55,702.52,0.2846894]
[1736953354929,0.26108512,704.57,702.52,0.2846894]
[1736953355128,0.26108512,704.56,702.52,0.2846894]
[1736953355325,0.26108228,704.55,702.52,0.2846894]
[1736953355528,0.26108258,704.61,702.52,0.2846894]
[1736953355529,0.26108228,704.54,702.52,0.2846894]
[1736953355727,0.26108228,704.53,702.52,0.2846894]
[1736953355933,0.26108228,704.52,702.52,0.2846894]
[1736953356233,0.26108228,704.51,702.52,0.2846894]
[1736953356433,0.912,704.53,702.52,0.2846894]
[1736953356434,1.05634191,704.49,702.52,0.2846894]
[1736953356633,0.26108228,704.48,702.52,0.2846894]
[1736953356826,0.26108228,704.47,702.52,0.2846894]
[1736953357030,0.26108228,704.46,702.52,0.2846894]
[1736953357333,0.26108228,704.45,702.52,0.2846894]
[1736953357535,0.26109952,704.44,702.52,0.2846894]
[1736953357831,0.26109952,704.43,702.52,0.2846894]
[1736953358038,0.26112657,704.42,702.52,0.2846894]
[1736953358237,0.26112657,704.41,702.52,0.2846894]
[1736953358536,0.26112657,704.4,702.52,0.2846894]
[1736953358730,0.26112657,704.39,702.52,0.2846894]
[1736953359039,1.05634191,704.31,702.52,0.2846894]
[1736953359238,0.26115995,704.3,702.52,0.2846894]
[1736953359431,0.26115995,704.29,702.52,0.2846894]
[1736953359633,0.26115995,704.28,702.52,0.2846894]
[1736953359835,0.26115995,704.27,702.52,0.2846894]
[1736953360537,0.26116221,704.26,702.52,0.2846894]
[1736953360735,0.912,704.53,702.52,0.2846894]
[1736953360736,0.26116221,704.25,702.52,0.2846894]
[1736953361034,0.26114107,704.24,702.52,0.2846894]
[1736953361339,0.26114107,704.23,702.52,0.2846894]
[1736953361532,0.26114107,704.22,702.52,0.2846894]
[1736953361736,0.26114107,704.21,702.52,0.2846894]
[1736953361936,0.26114107,704.2,702.52,0.2846894]
[1736953362136,0.26114107,704.19,702.52,0.2846894]
[1736953362432,0.26114107,704.18,702.52,0.2846894]
[1736953362638,0.26114107,704.17,702.52,0.2846894]
[1736953362832,0.26114107,704.16,702.52,0.2846894]
[1736953363034,1.05634191,704.44,702.52,0.2846894]
[1736953363035,0.26114107,704.15,702.52,0.2846894]
[1736953363338,0.26114107,704.14,702.52,0.2846894]
[1736953363639,0.26114107,704.13,702.52,0.2846894]
[1736953363837,0.26114515,704.13,702.52,0.2846894]
[1736953364137,0.26114515,704.12,702.52,0.2846894]
[1736953364339,0.26114515,704.21,702.52,0.2846894]
[1736953364538,0.26114515,704.2,702.52,0.2846894]
[1736953364837,0.26114515,704.19,702.52,0.2846894]
[1736953365039,0.26114515,704.18,702.52,0.2846894]
[1736953365338,0.26114515,704.17,702.52,0.2846894]
[1736953365538,0.26114515,704.16,702.52,0.2846894]
[1736953365832,0.26114515,704.15,702.52,0.2846894]
[1736953366039,0.26114515,704.14,702.52,0.2846894]
[1736953366236,0.26114515,704.13,702.52,0.2846894]
[1736953366436,0.26114515,704.12,702.52,0.2846894]
[1736953366732,0.26112224,704.11,702.52,0.2846894]
[1736953366931,1.05634191,704.09,702.52,0.2846894]
[1736953367130,0.26112224,704.08,702.52,0.2846894]
[1736953367337,1.05634191,704.09,702.52,0.2846894]
[1736953367536,0.26114401,704.08,702.52,0.2846894]
[1736953368941,0.26114401,704.07,702.52,0.2846894]
[1736953369133,1.05634191,704.05,702.52,0.2846894]
[1736953369638,0.26114481,704.04,702.52,0.2846894]
[1736953371342,1.05634191,704.02,702.52,0.2846894]
[1736953371641,0.26114481,704.01,702.52,0.2846894]
[1736953372437,1.05634191,704.1,702.52,0.2846894]
[1736953372638,0.26113371,704.09,702.52,0.2846894]
[1736953373241,1.05634191,704.1,702.52,0.2846894]
[1736953373539,1.05634191,704.2,702.52,0.2846894]
[1736953374447,1.05634191,704.47,702.52,0.2846894]
[1736953375244,1.05634191,704.59,702.52,0.2846894]
[1736953375544,0.26103021,704.52,702.52,0.2846894]
[1736953375745,1.05634191,704.59,702.52,0.2846894]
[1736953375941,0.26101967,704.52,702.52,0.2846894]
[1736953376744,1.05634191,704.62,702.52,0.2846894]
[1736953378047,0.2609951,704.52,702.52,0.2846894]
[1736953378748,1.05634191,704.72,702.52,0.2846894]
[1736953378945,0.26097612,704.52,702.52,0.2846894]
[1736953379253,1.05634191,704.69,702.52,0.2846894]
[1736953380046,2.15669808,705.41,702.52,0.2846894]
[1736953380047,1.05634191,704.84,702.52,0.2846894]
[1736953380645,0.26100048,704.52,702.52,0.2846894]
[1736953382150,0.26100048,704.52,702.55,1.01916818]
[1736953383353,1.05634191,704.62,702.57,0.28466914]
[1736953383745,1.05634191,704.62,702.58,1.60140985]
[1736953383946,1.05634191,704.62,702.59,0.85200389]
[1736953384149,1.05634191,704.71,702.59,2.69438127]
[1736953385051,1.05634191,704.71,702.57,0.28466914]
[1736953385249,1.831,704.53,702.57,0.28466914]
[1736953391453,0.26101633,704.52,702.57,0.28466914]
[1736953391658,0.919,704.53,702.57,0.28466914]
[1736953391857,0.26102482,704.52,702.57,0.28466914]
[1736953392456,0.919,704.53,702.57,0.28466914]
[1736953394161,0.919,704.53,702.57,1.30383732]
[1736953395261,0.919,704.53,702.64,1.01916818]
[1736953396362,0.919,704.53,702.57,0.28466914]
[1736953401268,0.919,704.53,702.72,1.01916818]
[1736953402466,0.919,704.53,702.57,0.28466914]
[1736953403763,0.919,704.53,702.58,2.45243172]
[1736953403965,0.919,704.53,702.59,2.45243172]
[1736953404264,0.919,704.53,702.6,2.45243172]
[1736953404464,0.919,704.53,702.61,2.45243172]
[1736953404666,0.919,704.53,703.01,1.01916818]
[1736953404867,0.919,704.53,703.02,1.60054201]
[1736953405167,0.919,704.53,703.03,2.69321944]
[1736953405467,0.919,704.53,703.03,3.71238762]
[1736953405667,0.919,704.53,703.04,1.59868884]
[1736953406068,0.919,704.53,703.03,3.71238762]
[1736953406268,0.919,704.53,703.05,0.28447478]
[1736953407769,0.919,704.53,703.07,1.01916818]
[1736953408869,0.919,704.53,703.08,2.44509817]
[1736953409070,0.919,704.53,703.09,2.44509817]
[1736953409271,0.919,704.53,703.1,1.59363714]
[1736953409465,0.919,704.53,703.11,1.59363714]
[1736953409665,0.919,704.53,703.05,0.28447478]
[1736953409866,0.919,704.53,703.25,1.01916818]
[1736953410869,0.919,704.53,703.05,0.28447478]
[1736953420176,1.626,704.53,703.05,0.28447478]
[1736953434291,0.26097376,704.52,703.05,0.28447478]
[1736953434689,1.05634191,704.84,703.05,0.28447478]
[1736953434889,0.26102155,704.83,703.05,0.28447478]
[1736953435485,1.05634191,704.73,703.05,0.28447478]
[1736953435787,0.26102155,704.72,703.05,0.28447478]
[1736953436387,1.05634191,704.73,703.05,0.28447478]
[1736953436388,0.26103974,704.71,703.05,0.28447478]
[1736953436588,0.26103974,704.72,703.05,0.28447478]
[1736953436788,0.26103974,704.71,703.05,0.28447478]
[1736953436984,0.26103974,704.7,703.05,0.28447478]
[1736953437287,0.26103974,704.69,703.05,0.28447478]
[1736953437491,0.26103974,704.68,703.05,0.28447478]
[1736953437692,0.26103974,704.67,703.05,0.28447478]
[1736953437993,0.54486456,704.66,703.05,0.28447478]
[1736953438192,0.26103974,704.65,703.05,0.28447478]
[1736953439087,0.28383287,704.64,703.05,0.28447478]
[1736953439290,0.26104605,704.63,703.05,0.28447478]
[1736953439791,0.28384093,704.62,703.05,0.28447478]
[1736953440094,0.26104605,704.61,703.05,0.28447478]
[1736953440293,0.26104605,704.6,703.05,0.28447478]
[1736953440589,0.26104605,704.59,703.05,0.28447478]
[1736953440794,0.26104605,704.58,703.05,0.28447478]
[1736953440995,0.26104605,704.57,703.05,0.28447478]
[1736953441195,0.5449679,704.56,703.05,0.28447478]
[1736953441396,0.2611028,704.55,703.05,0.28447478]
[1736953441990,1.74530713,704.54,703.05,0.28447478]
[1736953442194,0.26112982,704.53,703.05,0.28447478]
[1736953443395,0.26112982,704.52,703.05,0.28447478]
[1736953443595,0.26112982,704.51,703.05,0.28447478]
[1736953443796,0.26112982,704.5,703.05,0.28447478]
[1736953443994,0.26112982,704.49,703.05,0.28447478]
[1736953444198,0.26112982,704.48,703.05,0.28447478]
[1736953444400,0.26112982,704.47,703.05,0.28447478]
[1736953444595,0.26112982,704.46,703.05,0.28447478]
[1736953444899,0.26112982,704.45,703.05,0.28447478]
[1736953445101,0.26112982,704.44,703.05,0.28447478]
[1736953445299,0.26112982,704.43,703.05,0.28447478]
[1736953445597,0.26112982,704.42,703.05,0.28447478]
[1736953445797,0.26112982,704.41,703.05,0.28447478]
[1736953445997,0.26112982,704.4,703.05,0.28447478]
[1736953446199,0.26112982,704.39,703.05,0.28447478]
[1736953446391,0.26112982,704.38,703.05,0.28447478]
[1736953446693,0.26112982,704.37,703.05,0.28447478]
[1736953446898,0.26112982,704.36,703.05,0.28447478]
[1736953447096,0.26112982,704.35,703.05,0.28447478]
[1736953447292,0.26112982,704.34,703.05,0.28447478]
[1736953447494,0.26112982,704.33,703.05,0.28447478]
[1736953447699,0.26112982,704.32,701.58,2.45509764]
[1736953447891,1.48417731,704.54,701.59,2.45509764]
[1736953448095,0.26122162,704.53,701.71,0.28501802]
[1736953448295,0.26122162,704.52,701.72,1.60213762]
[1736953448497,0.26122162,704.51,701.72,1.60213762]
[1736953448697,0.26122743,704.5,701.71,0.28501802]
[1736953448900,0.26122743,704.49,701.71,0.28501802]
[1736953449092,0.26122743,704.48,701.71,0.28501802]
[1736953449296,0.26122743,704.47,701.71,0.28501802]
[1736953449501,0.26122743,704.46,701.71,0.28501802]
[1736953449694,0.26122743,704.45,701.71,0.28501802]
[1736953449894,0.98848552,704.44,701.72,1.60111787]
[1736953450095,0.98848552,704.43,701.72,1.60111787]
[1736953450396,0.98848552,704.42,701.71,0.28501802]
[1736953450701,1.05269356,704.4,701.71,0.28501802]
[1736953450900,0.26125948,704.39,701.71,0.28501802]
[1736953451105,0.26125948,704.38,701.71,0.28501802]
[1736953451302,1.05269356,704.4,701.71,0.28501802]
[1736953451303,0.26123659,704.37,701.71,0.28501802]
[1736953451499,0.26123659,704.36,701.71,0.28501802]
[1736953451700,0.26123116,704.35,701.71,0.28501802]
[1736953451895,0.26123116,704.34,701.71,0.28501802]
[1736953452098,0.26123116,704.33,701.71,0.28501802]
[1736953452293,0.26123116,704.55,701.71,0.28501802]
[1736953452501,0.26123116,704.54,701.71,0.28501802]
[1736953452702,0.26123116,704.55,701.71,0.28501802]
[1736953452902,0.26123116,704.54,701.71,0.28501802]
[1736953453201,1.7462054,704.53,701.71,0.28501802]
[1736953453402,0.26123116,704.52,701.71,0.28501802]
[1736953453903,1.48497424,704.53,701.72,2.44850088]
[1736953454101,0.2611396,704.52,701.73,2.44850088]
[1736953454301,0.2611396,704.51,701.74,2.44850088]
[1736953454502,0.2611396,704.5,701.75,2.44850088]
[1736953454702,1.48497424,704.53,701.76,1.59580615]
[1736953454703,0.2611396,704.49,701.76,1.59580615]
[1736953454901,0.2611396,704.48,701.77,1.59580615]
[1736953455104,0.2611396,704.47,701.78,1.59580615]
[1736953455303,0.2611396,704.47,701.71,0.28501802]
[1736953455304,0.2611396,704.46,701.79,2.44853526]
[1736953455504,0.2611396,704.45,701.8,1.59580615]
[1736953455805,0.2611396,704.44,701.71,0.28501802]
[1736953455999,0.2611396,704.43,701.72,1.59699581]
[1736953456202,0.2611396,704.42,701.72,1.59699581]
[1736953456405,0.2611396,704.41,701.72,1.59699581]
[1736953456701,0.2611396,704.4,701.72,1.59699581]
[1736953456902,0.2611396,704.39,701.71,0.28501802]
[1736953457204,0.2611396,704.38,701.71,0.28501802]
[1736953457403,0.2611396,704.37,701.71,0.28501802]
[1736953457605,0.2611396,704.36,701.71,0.28501802]
[1736953457800,0.2611396,704.35,701.71,0.28501802]
[1736953458107,0.2611396,704.34,701.71,0.28501802]
[1736953458406,0.2611396,704.33,701.71,0.28501802]
[1736953458598,0.2611396,704.32,701.71,0.28501802]
[1736953458798,0.2611396,704.31,701.71,0.28501802]
[1736953459001,0.2611396,704.3,701.71,0.28501802]
[1736953459203,0.2611396,704.29,701.71,0.28501802]
[1736953459397,0.2611396,704.28,701.71,0.28501802]
[1736953459606,0.2611396,704.27,701.71,0.28501802]
[1736953459801,0.26128086,704.27,701.71,0.28501802]
[1736953460106,0.26128086,704.26,701.71,0.28501802]
[1736953460307,0.26128086,704.25,701.71,0.28501802]
[1736953460506,1.48497424,704.53,701.71,0.28501802]
[1736953460507,0.26124397,704.24,701.71,0.28501802]
[1736953460705,0.26124397,704.23,701.71,0.28501802]
[1736953461006,0.26124397,704.22,701.71,0.28501802]
[1736953461207,0.26124397,704.21,701.71,0.28501802]
[1736953461407,0.26124397,704.2,701.71,0.28501802]
[1736953461609,0.26124397,704.19,701.71,0.28501802]
[1736953461806,0.26124397,704.18,701.71,0.28501802]
[1736953462006,0.26124397,704.17,701.71,0.28501802]
[1736953462209,0.26124397,704.16,701.72,1.59424339]
[1736953462409,0.26124397,704.15,701.71,0.28501802]
[1736953462712,0.26124397,704.14,701.71,0.28501802]
[1736953463007,1.05269356,704.39,701.71,0.28501802]
[1736953463207,0.26121014,704.38,701.71,0.28501802]
[1736953463409,1.05269356,704.34,701.71,0.28501802]
[1736953463605,0.26121014,704.33,701.71,0.28501802]
[1736953463911,0.26121014,704.32,701.71,0.28501802]
[1736953464209,0.26121014,704.31,701.71,0.28501802]
[1736953464421,0.26121014,704.3,701.71,0.28501802]
[1736953464610,0.26121014,704.29,701.71,0.28501802]
[1736953464811,0.26121014,704.28,701.71,0.28501802]
[1736953465005,0.26121014,704.27,701.71,0.28501802]
[1736953465211,0.26121014,704.26,701.71,0.28501802]
[1736953465411,0.26121014,704.25,701.72,1.59383632]
[1736953465611,0.26121014,704.24,701.72,1.59383632]
[1736953465911,1.05269356,704.3,701.73,0.85263864]
[1736953466114,0.26112269,704.29,701.74,1.59383632]
[1736953466306,0.26112269,704.28,701.74,1.59383632]
[1736953466611,1.05269356,704.3,701.74,1.59383632]
[1736953466612,0.26112269,704.27,701.75,1.03461429]
[1736953466912,0.26112269,704.26,701.76,1.59383632]
[1736953467113,0.26112269,704.25,701.76,1.59383632]
[1736953467315,0.26112269,704.24,701.76,1.59383632]
[1736953467507,0.26112269,704.23,701.75,1.03461429]
[1736953467812,1.05269356,704.2,701.77,1.03461429]
[1736953468012,0.26112269,704.19,701.77,1.03461429]
[1736953468206,0.26112269,704.18,701.77,1.03461429]
[1736953468409,0.26112269,704.17,701.77,1.03461429]
[1736953468615,1.31381625,704.16,701.71,0.28501802]
[1736953468914,0.26113669,704.15,701.71,0.28501802]
[1736953469112,0.26113669,704.14,701.71,0.28501802]
[1736953469311,0.26113669,704.13,701.71,0.28501802]
[1736953469513,1.05269356,704.16,701.71,0.28501802]
[1736953469714,1.48493199,704.31,701.71,0.28501802]
[1736953469715,1.05269356,704.13,701.85,1.03461429]
[1736953469916,0.26116154,704.12,701.85,1.03461429]
[1736953470113,0.26116154,704.11,701.85,1.03461429]
[1736953470311,0.26116154,704.1,701.85,1.03461429]
[1736953470512,1.05269356,704.08,701.87,1.03461429]
[1736953470711,0.26116154,704.07,701.87,1.03461429]
[1736953470912,0.26116154,704.06,701.87,1.03461429]
[1736953471112,0.26116154,704.05,701.87,1.03461429]
[1736953471312,0.26116154,704.04,701.87,1.03461429]
[1736953471515,1.05269356,704.08,701.87,1.03461429]
[1736953471715,1.05269356,704.08,701.91,1.03461429]
[1736953472010,1.05269356,703.98,701.91,1.03461429]
[1736953472511,1.05269356,704.3,701.91,1.03461429]
[1736953472711,0.26110378,704.29,701.71,0.28501802]
[1736953472915,0.26110378,704.28,701.71,0.28501802]
[1736953473112,0.26110378,704.27,701.71,0.28501802]
[1736953473309,0.26110378,704.26,701.72,1.59738212]
[1736953473513,0.26110378,704.25,701.96,1.03461429]
[1736953473914,1.05269356,704.26,701.96,1.03461429]
[1736953474312,0.2610859,704.25,701.96,1.03461429]
[1736953474514,0.2610859,704.3,701.96,1.03461429]
[1736953474915,0.26107996,704.29,701.96,1.03461429]
[1736953475214,0.26107996,704.28,701.96,1.03461429]
[1736953475417,0.26107996,704.28,701.71,1.52655517]
[1736953475418,1.05269356,704.29,702.02,1.03461429]
[1736953476214,0.26106,704.28,702.03,2.45199611]
[1736953476418,0.26106,704.28,702.05,1.03461429]
[1736953476611,0.26106,704.27,702.06,2.45199611]
[1736953476810,0.26106,704.26,702.07,2.45196704]
[1736953477015,0.26106,704.26,702.05,1.03461429]
[1736953477016,0.26106,704.25,702.08,2.45196704]
[1736953477214,1.05269356,704.28,702.34,1.03461429]
[1736953477517,0.26104426,704.27,702.34,1.03461429]
[1736953478017,1.05269356,704.33,702.34,1.03461429]
[1736953478209,0.26102944,704.32,702.34,1.03461429]
[1736953479018,0.26102944,704.32,702.38,1.03461429]
[1736953479319,1.042,704.39,702.38,1.03461429]
[1736953479515,0.26100785,704.38,702.38,1.03461429]
[1736953479912,1.042,704.39,702.38,1.03461429]
[1736953480118,1.042,704.39,694.62,4.94645392]
[1736953480119,0.26103202,704.38,702.33,1.03461429]
[1736953480418,2.039,704.39,702.33,1.03461429]
[1736953480819,2.039,704.39,702.19,1.03461429]
[1736953481018,2.039,704.39,702.2,1.60225521]
[1736953481214,2.039,704.39,702.19,1.03461429]
[1736953481714,2.039,704.39,701.99,1.03461429]
[1736953482621,2.039,704.39,700.9,2.11233751]
[1736953482622,2.039,704.39,702.01,1.03461429]
[1736953483616,2.039,704.39,702.0,1.03461429]
[1736953483820,0.26103999,704.38,702.01,2.45562586]
[1736953484023,0.26103999,704.38,702.02,5.15344661]
[1736953484222,0.26103999,704.38,702.03,2.45562586]
[1736953484523,0.26103999,704.38,702.15,1.03461429]
[1736953484824,0.26103999,704.38,702.16,1.60325849]
[1736953485428,2.039,704.39,702.23,1.03461429]
[1736953485726,0.26101631,704.38,702.24,1.60325849]
[1736953486025,2.039,704.39,702.24,1.60325849]
[1736953486224,0.26102281,704.38,702.24,1.60325849]
[1736953486425,0.26102281,704.38,702.29,1.03461429]
[1736953486819,0.26102281,704.38,702.3,1.60403675]
[1736953487222,0.26102281,704.38,702.31,2.69908358]
[1736953487423,0.26102281,704.38,702.34,1.03461429]
[1736953488425,0.26102281,704.38,702.35,1.60620542]
[1736953488627,0.26102281,704.38,702.36,1.60620542]
[1736953488828,2.039,704.39,702.3,1.03461429]
[1736953489029,0.26106699,704.37,702.31,4.30982768]
[1736953489327,0.26106699,704.36,702.31,2.70320993]
[1736953489529,0.26106699,704.38,702.31,2.70320993]
[1736953489729,0.26106699,704.37,702.31,2.70320993]
[1736953490032,0.26106699,704.36,702.3,1.03461429]
[1736953490226,0.26106699,704.35,702.3,1.03461429]
[1736953490430,0.26106699,704.34,702.3,1.03461429]
[1736953490730,2.039,704.39,698.03,6.79876238]
[1736953490731,0.26106699,704.33,702.14,1.03461429]
[1736953490923,0.26106699,704.32,702.15,1.60903832]
[1736953491126,0.26106699,704.31,702.14,1.03461429]
[1736953491322,2.039,704.39,702.14,1.03461429]
[1736953491526,2.039,704.39,702.13,1.03461429]
[1736953491728,0.26113316,704.38,702.13,1.03461429]
[1736953491923,0.26112572,704.37,702.13,1.03461429]
[1736953492125,0.26112458,704.36,702.13,1.03461429]
[1736953492325,2.039,704.39,702.13,1.03461429]
[1736953492528,0.26111603,704.38,701.87,1.03461429]
[1736953492827,0.26111603,704.38,701.88,2.4632758]
[1736953493024,0.26111603,704.38,701.89,2.4632758]
[1736953493227,0.26111603,704.38,702.41,1.03461429]
[1736953493431,0.26111603,704.38,702.42,2.4632758]
[1736953493627,0.26111603,704.38,702.41,1.03461429]
[1736953493628,0.26111603,704.38,702.43,2.4632758]
[1736953493827,0.26111603,704.38,702.44,2.4632758]
[1736953494032,0.26111603,704.38,702.45,2.4632758]
[1736953494226,0.26111603,704.38,702.14,2.11233751]
[1736953494227,0.26111603,704.38,702.47,0.28470966]
[1736953494431,0.997,704.39,702.48,2.4632758]
[1736953494631,0.26109351,704.38,702.5,0.2846975]
[1736953494832,0.26109351,704.38,702.51,1.61070205]
[1736953495229,0.997,704.39,702.51,1.61070205]
[1736953495426,0.26110132,704.38,702.51,1.61070205]
[1736953495627,0.26110132,704.38,702.52,2.70963683]
[1736953495827,1.05269356,704.36,702.54,1.03461429]
[1736953496028,0.26110132,704.35,702.54,1.03461429]
[1736953496827,0.26110132,704.35,702.56,0.28467319]
[1736953497032,0.26110132,704.34,702.56,0.28467319]
[1736953497230,0.26110132,704.33,702.56,0.28467319]
[1736953497432,0.26110132,704.38,702.56,0.28467319]
[1736953497627,0.997,704.39,702.56,0.28467319]
[1736953500138,0.26110345,704.38,702.56,0.28467319]
[1736953500329,0.997,704.39,702.56,0.28467319]
[1736953501031,0.997,704.39,702.57,1.61127097]
[1736953501236,0.997,704.39,702.56,0.28467319]
[1736953504741,0.997,704.39,702.58,1.03461429]